[Event "MARCEL 1st Div Ch-League 2019"]
[Site "Dhaka"]
[Date "2019.11.12"]
[Round "1.10"]
[White "S.a.m., Nasir"]
[Black "Tutul, Dhar"]
[Result "0-1"]
[ECO "A14"]
[WhiteElo "2002"]
[BlackElo "1844"]
[Annotator "NA"]
[PlyCount "80"]
[EventDate "2019.11.12"]
[EventCountry "BAN"]
[SourceTitle "playchess.com"]
[Source "ChessBase"]
[SourceQuality "1"]
[TimeControl "5400+30"]

1. Nf3 {[%emt 0:00:00]} d5 {[%emt 0:00:03]} 2. g3 {[%emt 0:00:27]} Nf6 {[%emt 0:01:41]} 3. Bg2 {[%emt 0:00:13]} c5 {[%emt 0:02:52]} 4. O-O {[%emt 1:31:20]} Nc6 {[%emt 1:27:24]} 5. b3 {[%emt 0:00:00]} e6 {[%emt 0:00:00]} 6. Bb2 {[%emt 0:00:00]} Be7 {[%emt 0:00:00]} 7. e3 {[%emt 0:00:00]} O-O {[%emt 0:00:00]} 8. d4 {[%emt 0:00:00]} b6 {[%emt 0:00:00]} 9. c4 {[%emt 0:00:00]} Ba6 {[%emt 0:00:00]} 10. Nbd2 {[%emt 0:00:00]} Rc8 {[%emt 0:00:00]} 11. Ne5 {[%emt 0:00:00]} cxd4 {[%emt 0:00:00]} 12. exd4 {[%emt 0:00:00]} Qd6 {[%emt 0:00:00]} 13. f4 {[%emt 0:00:00]} Rfd8 {[%emt 0:00:00]} 14. Rc1 {[%emt 0:00:00]} Bb7 {[%emt 0:00:00]} 15. g4 {[%emt 0:00:00]} g6 {[%emt 0:00:00]} 16. f5 {[%emt 0:00:00]} Nxe5 {[%emt 0:00:00]} 17. dxe5 {[%emt 0:00:00]} Qc5+ {[%emt 0:00:00]} 18. Kh1 {[%emt 0:00:00]} Ne4 {[%emt 0:00:00]} 19. Nxe4 {[%emt 0:00:00]} dxe4 {[%emt 0:00:00]} 20. Qc2 {[%emt 0:00:00]} Rd3 {[%emt 0:03:53]} 21. fxg6 {[%emt 0:00:00]} fxg6 {[%emt 0:01:20]} 22. Rce1 {[%emt 0:00:00]} Rcd8 {[%emt 0:01:41]} 23. Qf2 {[%emt 0:00:00]} Qxf2 {[%emt 0:00:25]} 24. Rxf2 {[%emt 0:10:00]} Rd2 {[%emt 0:01:01]} 25. Rxd2 {[%emt 0:00:00]} Rxd2 {[%emt 0:00:02]} 26. Bc3 {[%emt 0:00:00]} Rc2 {[%emt 0:00:27]} 27. Bd4 {[%emt 0:00:00]} Bh4 {[%emt 0:01:03]} 28. Ra1 {[%emt 0:00:00]} Rd2 {[%emt 0:01:03]} 29. Bc3 {[%emt 0:00:00]} Re2 {[%emt 0:00:05]} 30. Kg1 {[%emt 0:00:00]} Bf2+ {[%emt 0:01:00]} 31. Kf1 {[%emt 0:00:00]} Rc2 {[%emt 0:00:05]} 32. Rd1 {[%emt 0:00:00]} Bh4 {[%emt 0:01:09]} 33. Be1 {[%emt 0:00:25]} Bg5 {[%emt 0:00:40]} 34. Rd7 {[%emt 0:00:51]} Bc6 {[%emt 0:00:17]} 35. Rd6 {[%emt 0:03:02]} Be8 {[%emt 0:00:29]} 36. Bxe4 {[%emt 0:00:20]} Rc1 {[%emt 0:00:33]} 37. Ke2 {[%emt 0:00:17]} Ra1 {[%emt 0:00:46]} 38. Rxe6 {[%emt 0:00:50]} Bd7 {[%emt 0:00:13]} 39. Rd6 {[%emt 0:00:26]} Bxg4+ {[%emt 0:00:08]} 40. Bf3 {[%emt 0:01:08]} Rxa2+ {[%emt 0:00:25]} 0-1

[Event "MARCEL 1st Div Ch-League 2019"]
[Site "Dhaka"]
[Date "2019.11.12"]
[Round "1.11"]
[White "Hossain, Alamgir"]
[Black "Apollosana Mangang, Rajkumar"]
[Result "0-1"]
[ECO "B48"]
[WhiteElo "2032"]
[BlackElo "2078"]
[Annotator "NA"]
[PlyCount "102"]
[EventDate "2019.11.12"]
[EventCountry "BAN"]
[SourceTitle "playchess.com"]
[Source "ChessBase"]
[SourceQuality "1"]
[TimeControl "5400+30"]

1. e4 {[%emt 1:30:30]} c5 {[%emt 1:30:30]} 2. Nf3 {[%emt 0:00:30]} e6 {[%emt 0:00:30]} 3. Nc3 {[%emt 0:00:30]} a6 {[%emt 0:00:30]} 4. Be2 {[%emt 0:00:30]} Qc7 {[%emt 0:00:30]} 5. a3 {[%emt 0:00:30]} Nc6 {[%emt 0:00:30]} 6. d4 {[%emt 0:00:30]} cxd4 {[%emt 0:00:30]} 7. Nxd4 {[%emt 0:00:30]} Nf6 {[%emt 0:00:30]} 8. Be3 {[%emt 0:00:30]} Be7 {[%emt 0:00:30]} 9. Qd2 {[%emt 0:00:30]} O-O {[%emt 0:00:30]} 10. g4 {[%emt 0:00:30]} d6 {[%emt 0:00:30]} 11. g5 {[%emt 0:00:30]} Nd7 {[%emt 0:00:30]} 12. h4 {[%emt 0:00:30]} Nxd4 {[%emt 0:00:30]} 13. Bxd4 {[%emt 0:00:30]} b5 {[%emt 0:00:30]} 14. h5 {[%emt 0:00:30]} f6 {[%emt 0:00:30]} 15. g6 {[%emt 0:00:30]} h6 {[%emt 0:00:30]} 16. Be3 {[%emt 0:00:30]} Rd8 {[%emt 0:00:30]} 17. O-O-O {[%emt 0:00:30]} Nf8 {[%emt 0:00:30]} 18. Rhg1 {[%emt 0:00:30]} Rb8 {[%emt 0:00:30]} 19. f4 {[%emt 0:00:30]} d5 {[%emt 0:00:30]} 20. exd5 {[%emt 0:00:30]} b4 {[%emt 0:00:30]} 21. axb4 {[%emt 0:00:30]} Bxb4 {[%emt 0:00:30]} 22. Qd4 {[%emt 0:00:30]} Qa5 {[%emt 0:00:30]} 23. Nb1 {[%emt 0:00:30]} exd5 {[%emt 0:00:30]} 24. Qa7 {[%emt 0:00:30]} Bf5 {[%emt 0:00:30]} 25. Bd3 {[%emt 0:00:30]} Bd7 {[%emt 0:00:30]} 26. f5 {[%emt 0:00:30]} Bd6 {[%emt 0:00:30]} 27. Rg4 {[%emt 0:00:30]} Rdc8 {[%emt 0:00:30]} 28. Qxa6 {[%emt 0:00:30]} Rxc2+ {[%emt 0:00:30]} 29. Kxc2 {[%emt 0:00:30]} Qxa6 {[%emt 0:00:30]} 30. Bxa6 {[%emt 0:00:30]} Bxf5+ {[%emt 0:00:30]} 31. Kc1 {[%emt 0:00:30]} Bxg4 {[%emt 0:00:30]} 32. Rxd5 {[%emt 0:00:30]} Be5 {[%emt 0:00:30]} 33. Bc4 {[%emt 0:00:30]} Be6 {[%emt 0:00:30]} 34. b3 {[%emt 0:00:30]} Bxd5 {[%emt 0:00:30]} 35. Bxd5+ {[%emt 0:00:30]} Kh8 {[%emt 0:00:30]} 36. Nd2 {[%emt 0:00:30]} Bc7 {[%emt 0:00:30]} 37. Kc2 {[%emt 0:00:30]} f5 {[%emt 0:00:30]} 38. Nf3 {[%emt 0:00:30]} f4 {[%emt 0:00:30]} 39. Bd4 {[%emt 0:00:30]} Rb5 {[%emt 0:00:30]} 40. Be4 {[%emt 0:00:30]} Rxh5 {[%emt 0:00:30]} 41. b4 {[%emt 0:00:30]} Ne6 {[%emt 0:00:30]} 42. Bg1 {[%emt 0:00:30]} Ng5 {[%emt 0:00:30]} 43. Nxg5 {[%emt 0:00:30]} hxg5 {[%emt 0:00:30]} 44. b5 {[%emt 0:00:30]} g4 {[%emt 0:00:30]} 45. b6 {[%emt 0:00:30]} Bb8 {[%emt 0:00:30]} 46. Kd2 {[%emt 0:00:30]} Rb5 {[%emt 0:00:30]} 47. Bd4 {[%emt 0:00:30]} f3 {[%emt 0:00:30]} 48. Bg1 {[%emt 0:00:30]} Rb2+ {[%emt 0:00:30]} 49. Ke3 {[%emt 0:00:30]} Rxb6 {[%emt 0:00:30]} 50. Bf5 {[%emt 0:00:30]} Rf6 {[%emt 0:00:30]} 51. Ke4 {[%emt 0:00:30]} Rxf5 {[%emt 0:00:30]} 0-1

[Event "MARCEL 1st Div Ch-League 2019"]
[Site "Dhaka"]
[Date "2019.11.12"]
[Round "1.12"]
[White "Hasan Md, Emam"]
[Black "Tanvir, Alam"]
[Result "1-0"]
[ECO "C61"]
[WhiteElo "2046"]
[BlackElo "1895"]
[Annotator "NA RC"]
[PlyCount "85"]
[EventDate "2019.11.12"]
[EventCountry "BAN"]
[SourceTitle "playchess.com"]
[Source "ChessBase"]
[SourceQuality "1"]
[TimeControl "5400+30"]

1. e4 {[%emt 1:30:30]} e5 {[%emt 1:30:30]} 2. Nf3 {[%emt 0:00:30]} Nc6 {[%emt 0:00:30]} 3. Bb5 {[%emt 0:00:30]} Nd4 {[%emt 0:00:30]} 4. Nxd4 {[%emt 0:00:30]} exd4 {[%emt 0:00:30]} 5. Bc4 {[%emt 0:00:30]} Qf6 {[%emt 0:00:30]} 6. O-O {[%emt 0:00:30]} d6 {[%emt 0:00:30]} 7. c3 {[%emt 0:00:30]} Nh6 {[%emt 0:00:30]} 8. cxd4 {[%emt 0:00:30]} Qxd4 {[%emt 0:00:30]} 9. d3 {[%emt 0:00:30]} Qf6 {[%emt 0:00:30]} 10. Nc3 {[%emt 0:00:30]} c6 {[%emt 0:00:30]} 11. d4 {[%emt 0:00:30]} Be7 {[%emt 0:00:30]} 12. f3 {[%emt 0:00:30]} O-O {[%emt 0:00:30]} 13. Be3 {[%emt 0:00:30]} Kh8 {[%emt 0:00:30]} 14. Qd2 {[%emt 0:00:30]} Qg6 {[%emt 0:00:30]} 15. g4 {[%emt 0:00:30]} Ng8 {[%emt 0:00:30]} 16. Ne2 {[%emt 0:00:30]} f6 {[%emt 0:00:30]} 17. Nf4 {[%emt 0:00:30]} Qe8 {[%emt 0:00:30]} 18. Rf2 {[%emt 0:00:30]} Bd8 {[%emt 0:00:30]} 19. Rg2 {[%emt 0:00:30]} Ne7 {[%emt 0:00:30]} 20. Kh1 {[%emt 0:00:30]} Ng6 {[%emt 0:00:30]} 21. Nxg6+ {[%emt 0:00:30]} Qxg6 {[%emt 0:00:30]} 22. Bd3 {[%emt 0:00:30]} Qf7 {[%emt 0:00:30]} 23. Rag1 {[%emt 0:00:30]} g6 {[%emt 0:00:30]} 24. b3 {[%emt 0:00:30]} d5 {[%emt 0:00:30]} 25. e5 {[%emt 0:00:30]} fxe5 {[%emt 0:00:30]} 26. dxe5 {[%emt 0:00:30]} Be6 {[%emt 0:00:30]} 27. Bh6 {[%emt 0:00:30]} Rg8 {[%emt 0:00:30]} 28. f4 {[%emt 0:00:30]} Bb6 {[%emt 0:00:30]} 29. Rf1 {[%emt 0:00:30]} d4 {[%emt 0:00:30]} 30. Be4 {[%emt 0:00:30]} Bd5 {[%emt 0:00:30]} 31. Qd3 {[%emt 0:00:30]} Rae8 {[%emt 0:00:30]} 32. Bg5 {[%emt 0:00:30]} Rgf8 {[%emt 0:00:30]} 33. Bxd5 {[%emt 0:00:30]} Qxd5 {[%emt 0:00:30]} 34. Bf6+ {[%emt 0:00:30]} Kg8 {[%emt 0:00:30]} 35. f5 {[%emt 0:00:30]} g5 {[%emt 0:00:30]} 36. Qh3 {[%emt 0:00:30]} Qf7 {[%emt 0:00:30]} 37. Qh6 {[%emt 0:00:30]} Qxf6 {[%emt 0:00:30]} 38. exf6 {[%emt 0:00:30]} Rf7 {[%emt 0:00:30]} 39. Qxg5+ {[%emt 0:00:30]} Kf8 {[%emt 0:00:30]} 40. Qh6+ {[%emt 0:00:30]} Kg8 {[%emt 0:00:30]} 41. g5 {[%emt 0:00:30]} Kh8 {[%emt 0:00:30]} 42. g6 {[%emt 0:00:30]} Rd7 {[%emt 0:00:30]} 43. f7 {[%emt 0:00:30]} 1-0

[Event "MARCEL 1st Div Ch-League 2019"]
[Site "Dhaka"]
[Date "2019.11.13"]
[Round "2.1"]
[White "Suvradeepta, Das"]
[Black "Sabya, Sachi"]
[Result "1-0"]
[ECO "A85"]
[WhiteElo "1997"]
[BlackElo "1887"]
[Annotator "NA"]
[PlyCount "80"]
[EventDate "2019.11.12"]
[EventCountry "BAN"]
[SourceTitle "playchess.com"]
[Source "ChessBase"]
[SourceQuality "1"]
[TimeControl "5400+30"]

1. c4 {[%emt 0:00:00]} f5 {[%emt 0:00:15]} 2. d4 {[%emt 0:00:24]} Nf6 {[%emt 0:00:15]} 3. Nc3 {[%emt 0:00:02]} g6 {[%emt 0:00:33]} 4. Bg5 {[%emt 0:00:27]} Bg7 {[%emt 0:00:39]} 5. Qc2 {[%emt 0:00:20]} O-O {[%emt 1:30:48]} 6. e3 {[%emt 0:00:22]} d6 {[%emt 0:00:00]} 7. O-O-O {[%emt 0:01:12]} c6 {[%emt 0:00:00]} 8. h4 {[%emt 0:00:33]} Qc7 {[%emt 0:00:00]} 9. Bd3 {[%emt 0:01:04]} e5 {[%emt 0:00:00]} 10. d5 {[%emt 0:17:48]} Na6 {[%emt 0:00:00]} 11. a3 {[%emt 0:00:45]} (11. Bxf6 $1 $11 Rxf6 12. Be2) 11... Nc5 {[%emt 0:00:00]} 12. Bxf6 $1 {[%emt 0:01:42]} Bxf6 {[%emt 0:00:00]} 13. Be2 {[%emt 0:00:09]} a5 {[%emt 0:00:00]} 14. Kb1 {[%emt 0:01:14]} Bg7 {[%emt 0:00:00]} ({Black should play} 14... e4 $15) 15. Nh3 $11 {[%emt 0:01:46]} Bd7 {[%emt 0:00:00]} 16. Ng5 {[%emt 0:12:18]} h6 {[%emt 0:00:00]} 17. Nf3 {[%emt 0:02:33]} Ne4 {[%emt 0:00:00]} 18. dxc6 bxc6 {[%emt 0:06:30]} 19. Rhf1 {[%emt 0:56:51]} Nxc3+ {[%emt 0:00:00]} 20. bxc3 {[%emt 0:00:30]} Rfb8+ {[%emt 0:01:00]} 21. Ka2 {[%emt 0:00:30]} d5 {[%emt 0:00:30]} 22. Rb1 {[%emt 0:00:30]} Be6 {[%emt 0:00:30]} 23. Qa4 {[%emt 0:00:30]} Bd7 {[%emt 0:00:30]} 24. Qc2 {[%emt 0:00:00]} Bf8 25. Rxb8 {[%emt 0:00:00]} Qxb8 26. Rb1 {[%emt 0:00:00]} Qd6 27. Qa4 {[%emt 0:02:00]} c5 {[%emt 0:02:00]} 28. Qb3 {[%emt 0:00:30]} e4 {[%emt 0:00:30]} 29. Nd2 {[%emt 0:00:30]} a4 {[%emt 0:00:30]} 30. Qb6 {[%emt 0:00:30]} Bc6 {[%emt 0:00:30]} 31. cxd5 {[%emt 0:00:30]} Bxd5+ {[%emt 0:00:30]} 32. Nc4 {[%emt 0:00:00]} Qe6 33. Qxe6+ {[%emt 0:01:00]} Bxe6 {[%emt 0:01:00]} 34. Rb6 {[%emt 0:00:30]} Kf7 {[%emt 0:00:30]} 35. Kb2 {[%emt 0:00:30]} Bg7 {[%emt 0:00:30]} 36. h5 {[%emt 0:00:30]} g5 {[%emt 0:00:30]} 37. g4 {[%emt 0:00:30]} Rd8 {[%emt 0:00:30]} 38. gxf5 {[%emt 0:00:30]} Bxc4 {[%emt 0:00:00]} 39. Bxc4+ {[%emt 0:00:00]} Ke7 {[%emt 0:01:00]} 40. Kc2 {[%emt 0:01:00]} Rf8 {[%emt 0:00:30]} 1-0

[Event "MARCEL 1st Div Ch-League 2019"]
[Site "Dhaka"]
[Date "2019.11.13"]
[Round "2.2"]
[White "Nurul, Islam"]
[Black "Sarbojit Paul"]
[Result "0-1"]
[ECO "B49"]
[WhiteElo "1989"]
[BlackElo "2074"]
[Annotator "NA"]
[PlyCount "60"]
[EventDate "2019.11.12"]
[EventCountry "BAN"]
[SourceTitle "playchess.com"]
[Source "ChessBase"]
[SourceQuality "1"]
[TimeControl "5400+30"]

1. e4 {[%emt 0:00:00]} c5 {[%emt 0:00:45]} 2. Nf3 {[%emt 0:00:23]} e6 {[%emt 0:00:40]} 3. d4 {[%emt 0:01:12]} cxd4 {[%emt 0:00:14]} 4. Nxd4 {[%emt 0:00:12]} Nc6 {[%emt 0:00:28]} 5. Be2 {[%emt 0:02:13]} Nf6 {[%emt 0:00:46]} 6. Nc3 {[%emt 0:08:43]} Qc7 {[%emt 0:00:20]} 7. Be3 {[%emt 0:09:13]} a6 {[%emt 0:00:34]} 8. Qd2 {[%emt 0:04:34]} b5 {[%emt 0:04:35]} 9. Nxc6 {[%emt 0:06:28]} dxc6 {[%emt 0:01:08]} 10. a3 {[%emt 0:01:18]} Be7 {[%emt 0:01:24]} 11. Bf3 {[%emt 0:03:45]} e5 {[%emt 0:01:23]} 12. h3 {[%emt 0:03:09]} Be6 {[%emt 0:00:25]} 13. Ne2 {[%emt 0:05:49]} O-O {[%emt 0:02:58]} 14. O-O $11 {[%emt 0:00:50]} Nd7 {[%emt 0:16:06]} 15. Ng3 {[%emt 0:03:42]} g6 {[%emt 0:02:27]} 16. Bh6 {[%emt 0:03:46]} Rfd8 {[%emt 0:00:57]} 17. Qc3 {[%emt 0:01:20]} Rac8 {[%emt 0:09:57]} 18. Rfd1 {[%emt 0:00:38]} Nb6 {[%emt 0:04:46]} 19. b3 {[%emt 0:03:25]} c5 {[%emt 0:05:54]} 20. Be2 {[%emt 0:09:27]} Rd4 {[%emt 0:04:22]} 21. Qe3 {[%emt 0:12:27]} Rcd8 {[%emt 0:01:46]} 22. Nf5 {[%emt 0:04:17]} Bxf5 {[%emt 0:08:45]} 23. exf5 {[%emt 0:00:09]} Nd5 {[%emt 0:00:27]} 24. Qg3 {[%emt 0:05:54]} Bh4 {[%emt 0:05:44]} 25. Qf3 {[%emt 0:05:24]} e4 {[%emt 0:00:18]} 26. Qg4 {[%emt 0:00:28]} Bxf2+ {[%emt 0:00:03]} 27. Kh1 {[%emt 0:00:57]} Qg3 {[%emt 0:11:44]} 28. Rxd4 {[%emt 0:02:02]} Qxg4 {[%emt 0:00:04]} 29. Rxd5 {[%emt 0:00:19]} Qh4 {[%emt 0:00:01]} 30. Rxd8+ {[%emt 0:00:58]} Qxd8 {[%emt 0:00:02]} 0-1

[Event "MARCEL 1st Div Ch-League 2019"]
[Site "Dhaka"]
[Date "2019.11.13"]
[Round "2.3"]
[White "Gias Uddin, Ahmed"]
[Black "Bappi, A.b."]
[Result "1/2-1/2"]
[ECO "D02"]
[WhiteElo "1900"]
[BlackElo "1827"]
[Annotator "NA"]
[PlyCount "122"]
[EventDate "2019.11.12"]
[EventCountry "BAN"]
[SourceTitle "playchess.com"]
[Source "ChessBase"]
[SourceQuality "1"]
[TimeControl "5400+30"]

1. Nf3 {[%emt 0:00:00]} d5 {[%emt 1:30:30]} 2. d4 {[%emt 0:00:20]} Nf6 {[%emt 0:00:00]} 3. g3 {[%emt 0:00:53]} h6 {[%emt 0:00:00]} 4. Bg2 {[%emt 0:00:19]} e6 {[%emt 0:00:00]} 5. O-O {[%emt 0:01:02]} Be7 {[%emt 0:00:00]} 6. Nbd2 {[%emt 0:01:53] D02: 1 d4 d5 2 Nf3 sidelines, including 2...Nf6 3 g3 and 2...Nf6 3 Bf4} Nbd7 {[%emt 0:00:00]} 7. c4 {[%emt 0:00:18]} O-O {[%emt 0:00:00]} 8. b3 {[%emt 0:00:48]} Re8 {[%emt 0:00:00]} 9. Bb2 {[%emt 0:00:26]} c6 {[%emt 0:00:00]} 10. h3 $146 {[%emt 1:29:01]} ({Predecessor:} 10. Qc2 Bd6 11. Rad1 Rb8 12. e4 dxe4 13. Nxe4 Nxe4 14. Qxe4 Nf6 15. Qc2 Qc7 16. Rfe1 Bd7 17. Bc3 Rbd8 18. Qb2 {1-0 (48) Tempone,M (2387)-Cella,E (2053) Torre Blanca 2018}) 10... a5 {[%emt 0:00:00]} 11. a3 {[%emt 0:00:00]} b6 {[%emt 0:00:00]} 12. Ne5 {[%emt 0:00:00]} Nxe5 {[%emt 0:00:00]} 13. dxe5 {[%emt 0:00:00]} Nd7 {[%emt 0:00:00]} 14. e4 {[%emt 0:00:00]} dxc4 {[%emt 0:00:00]} 15. Nxc4 {[%emt 0:00:00]} Ba6 {[%emt 0:00:00]} 16. Qc2 {[%emt 0:00:00]} Bxc4 {[%emt 0:00:00]} 17. Qxc4 {[%emt 0:00:00]} Nc5 {[%emt 0:00:00]} 18. Rad1 {[%emt 0:00:00]} Qc7 {[%emt 0:00:00]} 19. f4 {[%emt 0:00:00]} b5 {[%emt 0:00:00]} 20. Qc2 {[%emt 0:00:00]} Rad8 {[%emt 0:00:00]} 21. Kh2 $15 {[%emt 0:00:00]} (21. Bd4 $11 Na6 22. Bb2) 21... Rxd1 {[%emt 0:00:00]} 22. Rxd1 {[%emt 0:00:00]} Rd8 {[%emt 0:00:00]} 23. Rxd8+ {[%emt 0:00:00]} Qxd8 {[%emt 0:00:00]} 24. Bf1 {[%emt 0:00:00]} Qd7 {[%emt 0:00:00]} 25. h4 {[%emt 0:00:00]} a4 {[%emt 0:00:00]} 26. b4 {[%emt 0:00:00]} Nb3 {[%emt 0:00:00]} 27. Qd3 {[%emt 0:00:00]} Qa7 {[%emt 0:00:00]} 28. Kg2 {[%emt 0:00:00]} Qb7 {[%emt 0:00:00]} 29. Kf3 {[%emt 0:00:00]} c5 {[%emt 0:00:00]} 30. bxc5 {[%emt 0:00:00]} Bxc5 {[%emt 0:00:00]} 31. Kg4 {[%emt 0:00:00]} b4 {[%emt 0:00:00]} 32. axb4 {[%emt 0:00:00]} Bxb4 {[%emt 0:00:00]} 33. Bg2 {[%emt 0:00:00]} Be7 {[%emt 0:00:00]} 34. Qc4 {[%emt 0:00:00]} a3 {[%emt 0:00:00]} 35. Bc3 {[%emt 0:00:00]} a2 {[%emt 0:00:00]} 36. Qa4 {[%emt 0:00:00]} Nc1 {[%emt 0:00:00]} 37. Bf1 {[%emt 0:00:00]} Qb3 {[%emt 0:00:00]} 38. Qd4 {[%emt 0:00:00]} Qb1 {[%emt 0:00:00]} 39. Bc4 {[%emt 0:00:00]} Qc2 {[%emt 0:00:00]} 40. Ba1 {[%emt 0:01:06]} g6 {[%emt 0:00:00]} 41. Kh3 {[%emt 0:03:29]} Qb1 {[%emt 0:00:00]} 42. Kg2 {[%emt 0:01:57]} Bc5 {[%emt 0:00:00]} 43. Qd8+ {[%emt 0:02:59]} Kh7 {[%emt 0:00:00]} 44. Qf6 {[%emt 0:00:30]} Qxe4+ {[%emt 0:00:15]} 45. Kh2 {[%emt 0:00:28]} Kg8 {[%emt 0:21:45]} 46. Bxe6 {[%emt 0:00:52]} Qe2+ {[%emt 0:00:00]} 47. Kh3 {[%emt 0:00:51]} Qf1+ {[%emt 0:00:00]} 48. Kg4 {[%emt 0:00:36]} Qd1+ {[%emt 0:00:00]} 49. Kh3 {[%emt 0:00:30]} Qh1+ {[%emt 0:00:00]} 50. Kg4 {[%emt 0:00:07]} Qd1+ {[%emt 0:00:00]} 51. Kh3 {[%emt 0:00:12]} fxe6 {[%emt 0:00:00]} 52. Qxe6+ {[%emt 0:00:25]} Kf8 {[%emt 0:00:00]} 53. Qc8+ {[%emt 0:01:07]} Ke7 {[%emt 0:00:00]} 54. Qxc5+ {[%emt 0:00:51]} Ke8 {[%emt 0:00:00]} 55. Qc6+ {[%emt 0:01:23]} Qd7+ {[%emt 0:00:00]} 56. Qxd7+ {[%emt 0:00:20]} Kxd7 {[%emt 0:00:00]} 57. h5 {[%emt 0:00:23]} gxh5 {[%emt 0:01:16]} 58. Kh4 {[%emt 0:00:37]} Ke6 {[%emt 0:05:14]} 59. Kxh5 {[%emt 0:00:14]} Ne2 {[%emt 0:00:00]} 60. g4 {[%emt 0:00:58]} Nxf4+ {[%emt 0:00:00]} 61. Kxh6 {[%emt 0:00:09]} Nd3 {[%emt 0:00:00]} 1/2-1/2

[Event "MARCEL 1st Div Ch-League 2019"]
[Site "Dhaka"]
[Date "2019.11.13"]
[Round "2.4"]
[White "Khondakar, Nazre Mowla"]
[Black "Anisuzzaman, Jewel"]
[Result "1/2-1/2"]
[ECO "B08"]
[WhiteElo "1864"]
[BlackElo "1852"]
[Annotator "NA"]
[PlyCount "74"]
[EventDate "2019.11.12"]
[EventCountry "BAN"]
[SourceTitle "playchess.com"]
[Source "ChessBase"]
[SourceQuality "1"]
[TimeControl "5400+30"]

1. e4 {[%emt 0:00:00]} g6 {[%emt 0:00:14]} 2. d4 {[%emt 0:01:10]} d6 {[%emt 0:00:42]} 3. Nf3 {[%emt 0:00:49]} Nf6 {[%emt 0:00:36]} 4. Nc3 {[%emt 0:02:45]} Bg7 {[%emt 0:00:18]} 5. Be2 {[%emt 0:01:03]} O-O {[%emt 0:00:10]} 6. O-O {[%emt 0:00:07]} Na6 {[%emt 0:06:57]} (6... c5 $11 {remains equal.}) 7. Be3 {[%emt 0:14:37]} c5 {[%emt 0:01:25]} 8. Bxa6 {[%emt 0:08:18]} cxd4 {[%emt 1:23:38]} 9. Nxd4 {[%emt 0:11:30]} bxa6 {[%emt 0:00:00]} 10. Nb3 $11 {[%emt 0:08:55]} Bb7 {[%emt 0:00:00]} 11. f3 {[%emt 0:00:29]} Qc7 {[%emt 0:00:00]} 12. Qe2 {[%emt 0:04:26]} d5 {[%emt 0:00:00]} 13. exd5 {[%emt 0:11:46]} Nxd5 {[%emt 0:00:00]} 14. Nxd5 {[%emt 0:00:16]} Bxd5 {[%emt 0:00:00]} 15. Rfb1 {[%emt 0:03:24]} Be5 {[%emt 0:00:00]} 16. h3 {[%emt 0:28:25]} Bc4 {[%emt 0:00:00]} 17. Qf2 {[%emt 0:00:00]} Bg3 {[%emt 0:00:00]} 18. Qd2 {[%emt 0:00:00]} Rfd8 {[%emt 0:00:00]} 19. Qa5 {[%emt 0:00:00]} Qxa5 {[%emt 0:00:00]} 20. Nxa5 {[%emt 0:00:00]} Be2 {[%emt 0:00:00]} 21. Nc6 {[%emt 0:00:00]} Rd7 {[%emt 0:00:00]} 22. Nd4 {[%emt 0:00:00]} Bc4 {[%emt 0:00:00]} 23. b3 {[%emt 0:00:00]} Be5 {[%emt 0:00:00]} 24. c3 {[%emt 0:00:00]} Bd5 {[%emt 0:00:00]} 25. Rd1 {[%emt 0:00:00]} Rad8 {[%emt 0:00:00]} 26. Rd3 {[%emt 0:00:00]} Bb7 {[%emt 0:00:00]} 27. Rad1 {[%emt 0:00:00]} Bb8 {[%emt 0:00:00]} 28. R3d2 {[%emt 0:00:00]} e5 {[%emt 0:02:40]} 29. Ne2 {[%emt 0:00:00]} Rxd2 {[%emt 0:00:06]} 30. Rxd2 {[%emt 0:00:00]} Rxd2 {[%emt 0:00:02]} 31. Bxd2 {[%emt 0:00:00]} f5 {[%emt 0:00:22]} 32. Be3 {[%emt 0:00:00]} Kf7 {[%emt 0:00:17]} 33. Kf2 {[%emt 0:00:00]} Ke6 {[%emt 0:02:52]} 34. f4 {[%emt 0:00:00]} e4 {[%emt 0:02:15]} 35. Bd4 {[%emt 0:00:00]} h5 {[%emt 0:00:45]} 36. g3 {[%emt 0:00:00]} Kd7 {[%emt 0:02:12]} 37. Ke3 {[%emt 0:00:00]} Ke6 {[%emt 0:02:59] Kxe4 Ke5+} 1/2-1/2

[Event "MARCEL 1st Div Ch-League 2019"]
[Site "Dhaka"]
[Date "2019.11.13"]
[Round "2.5"]
[White "Imam, Farhadur"]
[Black "Yasir Ali, Khan Evan"]
[Result "1-0"]
[ECO "B12"]
[WhiteElo "2033"]
[BlackElo "1930"]
[Annotator "NA"]
[PlyCount "79"]
[EventDate "2019.11.12"]
[EventCountry "BAN"]
[SourceTitle "playchess.com"]
[Source "ChessBase"]
[SourceQuality "1"]
[TimeControl "5400+30"]

1. e4 {[%emt 0:00:00]} c6 {[%emt 1:30:30]} 2. d4 {[%emt 0:00:06]} d5 {[%emt 0:00:00]} 3. e5 {[%emt 0:01:12]} Bf5 {[%emt 0:00:00]} 4. Bd3 {[%emt 0:01:29]} Bxd3 {[%emt 0:00:00]} 5. Qxd3 {[%emt 0:00:07]} e6 {[%emt 0:00:00]} 6. f4 {[%emt 0:00:40]} c5 {[%emt 0:00:00]} 7. c3 {[%emt 0:01:19] B12: Caro-Kann: Advance Variation} cxd4 {[%emt 0:00:00]} 8. cxd4 {[%emt 0:01:03]} Qa5+ {[%emt 0:00:00]} 9. Nc3 {[%emt 0:01:17]} Qa6 $146 {[%emt 0:00:00]} ({Predecessor:} 9... Bb4) 10. Nb5 {[%emt 0:01:23]} Bb4+ {[%emt 0:00:00]} (10... Qb6 $11) 11. Bd2 {[%emt 0:04:04]} Bxd2+ {[%emt 0:00:00]} 12. Kxd2 {[%emt 0:04:57]} Qa5+ {[%emt 0:00:00]} 13. Ke2 {[%emt 0:00:51]} Nc6 {[%emt 0:00:00]} 14. Nd6+ {[%emt 0:02:36]} Ke7 {[%emt 0:00:00]} 15. Nf3 {[%emt 0:00:41]} Nh6 {[%emt 0:00:00]} (15... Qb4 $16) 16. Rhd1 {[%emt 0:05:19]} Qb4 {[%emt 0:00:00]} 17. Rd2 {[%emt 0:02:14]} g6 {[%emt 0:00:00]} 18. a3 {[%emt 0:06:00]} Qb6 $1 {[%emt 0:00:00]} 19. Nh4 {[%emt 0:04:10]} Nf5 {[%emt 0:00:00]} (19... Rhd8 $14) 20. Nhxf5+ {[%emt 0:01:00]} gxf5 {[%emt 0:00:00]} 21. Rad1 {[%emt 0:03:51]} Rhg8 {[%emt 0:00:00]} 22. Qh3 {[%emt 0:01:09]} Rg7 $16 {[%emt 0:00:00]} 23. Qh6 {[%emt 0:03:21]} Rxg2+ {[%emt 0:00:00]} 24. Kf3 {[%emt 0:02:02]} Rg6 {[%emt 0:00:00]} 25. Qxh7 {[%emt 0:00:30]} Rag8 {[%emt 0:00:00]} 26. Qxf7+ {[%emt 0:01:32]} Kd8 {[%emt 0:00:00]} 27. Qxb7 {[%emt 0:04:56]} Qxb7 {[%emt 0:00:00]} 28. Nxb7+ {[%emt 0:00:03]} Kc7 {[%emt 0:00:00]} 29. Nc5 {[%emt 0:00:29]} Kb6 {[%emt 0:00:00]} 30. Nd7+ {[%emt 0:04:18]} Kb5 {[%emt 0:00:00]} 31. Rc1 {[%emt 0:01:20]} Na5 {[%emt 0:00:00]} 32. Rc5+ {[%emt 0:01:16]} Ka4 {[%emt 0:00:00]} 33. Rc7 {[%emt 0:00:32]} Nc4 {[%emt 0:00:00]} 34. Rxa7+ {[%emt 0:01:00]} Kb5 {[%emt 0:00:00]} 35. Rc2 {[%emt 0:03:46]} Rg1 {[%emt 0:00:00]} 36. a4+ {[%emt 0:01:04]} Kb4 {[%emt 0:00:00]} 37. Rb7+ {[%emt 0:02:13]} Ka5 {[%emt 0:00:00]} 38. Rxc4 {[%emt 0:01:41]} Rf1+ {[%emt 0:00:00]} 39. Ke2 {[%emt 0:00:56]} Ka6 {[%emt 0:00:00]} 40. Nc5+ {[%emt 0:00:31]} 1-0